bitfinex-derivatives/quotes_BTCF0:USTF0_20250218
["timestamp","ask_amount","ask_price","bid_price","bid_amount"]
[1739858401145,0.032,95655.0,95654.0,0.578879]
[1739858401643,0.032,95655.0,95654.0,0.574879]
[1739858401843,0.032,95655.0,95654.0,0.578879]
[1739858403550,0.032,95655.0,95654.0,0.574879]
[1739858403738,0.032,95655.0,95654.0,0.576879]
[1739858403944,0.03712325,95655.0,95654.0,0.576879]
[1739858404154,0.03712325,95655.0,95654.0,0.572879]
[1739858404347,0.03712325,95655.0,95654.0,0.574879]
[1739858404749,0.032,95655.0,95654.0,0.572879]
[1739858404940,0.032,95655.0,95654.0,0.576879]
[1739858405552,0.032,95655.0,95654.0,2.076879]
[1739858405950,0.08284108,95655.0,95654.0,2.076879]
[1739858406448,0.08284108,95655.0,95654.0,2.078879]
[1739858407057,0.04247457,95655.0,95654.0,2.076879]
[1739858407252,0.04247457,95655.0,95654.0,0.571879]
[1739858407457,0.0618325,95655.0,95654.0,0.576879]
[1739858407853,0.04247457,95655.0,95654.0,0.576879]
[1739858408854,0.04247457,95655.0,95654.0,0.571879]
[1739858409057,0.04247457,95655.0,95654.0,0.574879]
[1739858409657,0.04247457,95655.0,95654.0,0.571879]
[1739858409860,0.0648,95658.0,95657.0,0.2090726]
[1739858410363,0.0949,95658.0,95657.0,0.2090726]
[1739858411551,0.0949,95658.0,95657.0,0.2100726]
[1739858411948,0.0949,95658.0,95657.0,0.001]
[1739858412359,0.0949,95658.0,95657.0,0.003]
[1739858413558,0.0949,95658.0,95657.0,0.001]
[1739858413865,0.0949,95658.0,95657.0,0.003]
[1739858415356,0.0949,95658.0,95657.0,0.001]
[1739858415549,0.0949,95658.0,95657.0,0.002]
[1739858415954,0.18489478,95658.0,95657.0,0.002]
[1739858416153,0.18489478,95658.0,95657.0,0.0313]
[1739858416355,0.18489478,95658.0,95657.0,0.0323]
[1739858416555,0.18489478,95658.0,95657.0,0.002]
[1739858416955,0.18489478,95658.0,95656.0,0.2090728]
[1739858417163,0.18489478,95658.0,95657.0,0.001]
[1739858418158,0.15479478,95658.0,95657.0,0.001]
[1739858418360,0.18789478,95658.0,95657.0,0.001]
[1739858419552,0.18789478,95658.0,95656.0,0.2090728]
[1739858419758,0.0979,95658.0,95656.0,0.2090728]
[1739858419960,0.10324658,95658.0,95656.0,0.2090728]
[1739858423866,0.10424658,95658.0,95656.0,0.2090728]
[1739858425368,0.10424658,95658.0,95656.0,0.2133928]
[1739858425564,0.10424658,95658.0,95656.0,0.2217528]
[1739858426064,0.05084202,95657.0,95656.0,0.2217528]
[1739858427262,0.05184202,95657.0,95656.0,0.2217528]
[1739858427468,0.05284202,95657.0,95656.0,0.2217528]
[1739858428867,0.05284202,95657.0,95656.0,0.01268]
[1739858429864,0.15012814,95657.0,95656.0,0.01268]
[1739858430762,0.14912814,95657.0,95656.0,0.01268]
[1739858430967,0.15012814,95657.0,95656.0,0.04398]
[1739858431561,0.15012814,95657.0,95656.0,1.54398]
[1739858431963,0.15012814,95657.0,95656.0,0.04398]
[1739858433060,0.18112814,95657.0,95656.0,0.04398]
[1739858433271,0.0647,95657.0,95656.0,0.04398]
[1739858437564,0.0637,95657.0,95656.0,0.03862]
[1739858439064,0.0627,95657.0,95656.0,0.03862]
[1739858439266,0.0627,95657.0,95656.0,0.04362]
[1739858439663,0.0317,95657.0,95656.0,0.04362]
[1739858439871,0.1012602,95663.0,95662.0,0.209062]
[1739858440062,0.1012602,95663.0,95662.0,0.569862]
[1739858440470,0.062,95670.0,95662.0,0.569862]
[1739858440471,0.18688131,95666.0,95665.0,0.2090554]
[1739858440669,0.14615421,95666.0,95665.0,0.2090554]
[1739858441079,0.06725718,95666.0,95665.0,0.2090554]
[1739858441670,0.06725718,95666.0,95665.0,0.22623087]
[1739858441972,0.02673502,95666.0,95665.0,0.22623087]
[1739858442664,0.02673502,95666.0,95665.0,0.22723087]
[1739858445279,0.033,95669.0,95668.0,0.2090489]
[1739858446580,0.034,95669.0,95668.0,0.2090489]
[1739858446875,0.035,95669.0,95668.0,0.2090489]
[1739858447675,0.034,95669.0,95668.0,0.2090489]
[1739858448678,0.033,95669.0,95668.0,0.2090489]
[1739858450684,0.033,95669.0,95668.0,0.2351789]
[1739858455081,0.033,95669.0,95668.0,0.2371789]
[1739858455483,0.033,95669.0,95668.0,0.2477289]
[1739858456678,0.033,95669.0,95668.0,0.2457289]
[1739858456883,0.033,95669.0,95668.0,0.2477289]
[1739858458395,0.033,95669.0,95668.0,0.2457289]
[1739858458591,0.033,95669.0,95668.0,0.2477289]
[1739858459591,0.033,95669.0,95668.0,0.2457289]
[1739858459799,0.00015679,95675.0,95668.0,0.03868]
[1739858459999,0.00156769,95699.0,95695.0,0.20899]
[1739858460195,0.00156769,95699.0,95695.0,0.56979]
[1739858460904,0.02286391,95697.0,95695.0,0.56979]
[1739858461100,0.02286391,95697.0,95695.0,0.20899]
[1739858461300,0.34250488,95696.0,95695.0,0.21734]
[1739858462196,0.34850488,95696.0,95695.0,0.21834]
[1739858462489,0.35450488,95696.0,95695.0,0.21934]
[1739858462898,0.19686259,95696.0,95695.0,0.21934]
[1739858463213,0.22796259,95696.0,95695.0,0.21934]
[1739858464001,0.22796259,95696.0,95694.0,0.3608]
[1739858464207,0.3608,95695.0,95686.0,0.00015679]
[1739858464597,0.12602105,95696.0,95686.0,0.00015679]
[1739858464803,0.12602105,95696.0,95686.0,0.10313377]
[1739858464999,0.0315,95695.0,95692.0,0.2089955]
[1739858465201,0.0315,95695.0,95686.0,0.00015679]
[1739858465402,0.0315,95695.0,95694.0,0.002]
[1739858466010,0.0315,95695.0,95694.0,0.001]
[1739858466312,0.0375,95695.0,95694.0,0.001]
[1739858466606,0.0375,95695.0,95693.0,0.0418]
[1739858467808,0.0375,95695.0,95693.0,0.2507927]
[1739858467995,0.0315,95695.0,95694.0,0.001]
[1739858468804,0.0315,95695.0,95694.0,0.00835]
[1739858469301,0.3923,95695.0,95694.0,0.00835]
[1739858469508,0.3923,95695.0,95693.0,0.0428]
[1739858469708,0.3933,95695.0,95693.0,0.0418]
[1739858470009,0.3933,95695.0,95694.0,0.00835]
[1739858470309,0.3933,95695.0,95687.0,0.07315]
[1739858470512,0.3933,95695.0,95687.0,0.02315]
[1739858470809,0.3933,95695.0,95688.0,0.00836]
[1739858471410,0.3933,95695.0,95669.0,0.2090452]
[1739858471411,0.2090091,95687.0,95669.0,0.2090452]
[1739858471597,0.31064,95676.0,95672.0,0.2090389]
[1739858471799,0.31064,95676.0,95668.0,0.00855]
[1739858472007,0.31064,95676.0,95673.0,0.2090361]
[1739858472893,0.31064,95676.0,95674.0,0.03449]
[1739858473715,0.0316,95675.0,95674.0,0.03449]
[1739858473911,0.04929954,95675.0,95674.0,0.03449]
[1739858474703,0.11229954,95675.0,95674.0,0.03449]
[1739858475211,0.11429954,95675.0,95674.0,0.03449]
[1739858475511,0.11629954,95675.0,95674.0,0.03449]
[1739858475707,0.11429954,95675.0,95674.0,0.03449]
[1739858475908,0.11629954,95675.0,95674.0,0.03449]
[1739858476809,0.0986,95675.0,95674.0,0.04304]
[1739858477002,0.0986,95675.0,95674.0,0.15584]
[1739858478110,0.0966,95675.0,95674.0,0.15584]
[1739858478310,0.0986,95675.0,95674.0,0.15584]
[1739858478615,0.0966,95675.0,95674.0,0.15584]
[1739858478914,0.0986,95675.0,95674.0,0.15584]
[1739858479414,0.0996,95675.0,95674.0,0.15584]
[1739858479818,0.15043716,95675.0,95674.0,0.15584]
[1739858480015,0.15043716,95675.0,95674.0,0.04304]
[1739858481017,0.14743716,95675.0,95674.0,0.04304]
[1739858481217,0.14943716,95675.0,95674.0,0.04304]
[1739858481513,0.11593716,95675.0,95674.0,0.04304]
[1739858481711,0.11893716,95675.0,95674.0,0.10734]
[1739858482214,0.11693716,95675.0,95674.0,0.10734]
[1739858482415,0.11593716,95675.0,95674.0,0.10734]
[1739858482808,0.11493716,95675.0,95674.0,0.10734]
[1739858483005,0.11593716,95675.0,95674.0,0.10734]
[1739858483211,0.11593716,95675.0,95674.0,0.07414]
[1739858483412,0.0651,95675.0,95674.0,0.07414]
[1739858484334,0.0641,95675.0,95674.0,0.07414]
[1739858484514,0.0651,95675.0,95674.0,0.07414]
[1739858485023,0.0661,95675.0,95674.0,0.07414]
[1739858485627,0.0651,95675.0,95674.0,0.07414]
[1739858486121,0.0641,95675.0,95674.0,0.04304]
[1739858486316,0.0661,95675.0,95674.0,0.04304]
[1739858486531,0.0651,95675.0,95674.0,0.04304]
[1739858486819,0.0661,95675.0,95674.0,0.04304]
[1739858488419,0.0641,95675.0,95674.0,0.04304]
[1739858488617,0.0651,95675.0,95674.0,0.04304]
[1739858489009,0.0661,95675.0,95674.0,0.04304]
[1739858489223,0.0691,95675.0,95674.0,0.04304]
[1739858490318,0.1199418,95675.0,95674.0,0.04304]
[1739858491419,0.1209418,95675.0,95674.0,0.04304]
[1739858491723,0.4787418,95675.0,95674.0,0.04304]
[1739858492027,0.4827418,95675.0,95674.0,0.04304]
[1739858494119,0.56062424,95675.0,95674.0,0.04304]
[1739858494625,0.2090534,95666.0,95654.0,0.2090786]
[1739858494917,0.5698534,95666.0,95661.0,0.0313]
[1739858495216,0.5698534,95666.0,95664.0,0.04181]
[1739858495720,0.5708534,95666.0,95664.0,0.04181]
[1739858495913,0.5708534,95666.0,95665.0,0.01777679]
[1739858496109,0.5718534,95666.0,95665.0,0.01777679]
[1739858496315,0.57695973,95666.0,95665.0,0.01777679]
[1739858496817,0.57695973,95666.0,95640.0,0.2091099]
[1739858496818,0.2090837,95653.0,95640.0,0.2091099]
[1739858497125,0.3608,95645.0,95642.0,0.0615]
[1739858498126,0.3608,95645.0,95643.0,0.00836]
[1739858498316,0.3608,95645.0,95644.0,0.11156]
[1739858498916,0.001,95645.0,95644.0,0.11156]
[1739858499222,0.002,95645.0,95644.0,0.11156]
[1739858499620,0.001,95645.0,95644.0,0.11156]
[1739858499814,0.001,95645.0,95644.0,0.11656]
[1739858501223,0.00015679,95653.0,95644.0,0.11656]
[1739858501427,0.001,95645.0,95644.0,0.2211014]
[1739858502313,0.00115679,95653.0,95644.0,0.2161014]
[1739858502519,0.00115679,95653.0,95644.0,0.2211014]
[1739858502720,0.0173532,95653.0,95644.0,0.2211014]
[1739858502929,0.00115679,95653.0,95644.0,0.2211014]
[1739858503225,0.15540738,95650.0,95644.0,0.2211014]
[1739858503419,0.15540738,95650.0,95644.0,0.2161014]
[1739858503628,0.15540738,95650.0,95644.0,0.2211014]
[1739858503811,0.15540738,95650.0,95644.0,0.2141014]
[1739858504014,0.001,95645.0,95644.0,0.2211014]
[1739858505021,0.15540738,95650.0,95649.0,0.2090905]
[1739858505022,0.10560738,95650.0,95649.0,0.2090905]
[1739858505224,0.13568886,95658.0,95657.0,0.209073]
[1739858505527,0.0015684,95665.0,95664.0,0.2090577]
[1739858505721,0.0015684,95665.0,95664.0,0.22550286]
[1739858506117,0.3608,95688.0,95664.0,0.01644516]
[1739858506329,0.3939,95681.0,95672.0,0.2090402]
[1739858506528,0.00015679,95679.0,95672.0,0.22482633]
[1739858507033,0.00015679,95679.0,95672.0,0.01578613]
[1739858507212,0.00015679,95679.0,95676.0,0.2090305]
[1739858508727,0.00415679,95679.0,95677.0,0.031]
[1739858509025,0.00520258,95678.0,95677.0,0.2400293]
[1739858509217,0.00915679,95679.0,95677.0,0.2400293]
[1739858509417,0.21728341,95687.0,95686.0,0.2090096]
[1739858509617,0.16648341,95687.0,95686.0,0.5698096]
[1739858510130,0.0324,95697.0,95695.0,0.2089899]
[1739858510334,0.16648341,95705.0,95697.0,0.2089856]
[1739858511617,0.16648341,95705.0,95687.0,0.10297698]
[1739858511618,0.3608,95701.0,95686.0,1.27319679]
[1739858511822,0.0311,95698.0,95686.0,1.48220619]
[1739858512025,0.0311,95698.0,95697.0,0.001]
[1739858512526,0.0311,95698.0,95697.0,0.002]
[1739858514123,0.0311,95698.0,95697.0,0.001]
[1739858515026,0.0311,95698.0,95697.0,0.002]
[1739858516722,0.0311,95698.0,95697.0,0.001]
[1739858517437,0.0331,95698.0,95690.0,0.2089994]
[1739858517638,0.31901,95693.0,95686.0,0.91207679]
[1739858517826,0.0639,95692.0,95686.0,0.91139679]
[1739858518225,0.2090048,95689.0,95686.0,0.91139679]
[1739858519128,0.2090048,95689.0,95686.0,0.91339679]
[1739858519531,0.2110048,95689.0,95686.0,0.91339679]
[1739858520525,0.2110048,95689.0,95686.0,0.91139679]
[1739858520837,0.2130048,95689.0,95686.0,0.91139679]
[1739858521333,0.2130048,95689.0,95687.0,0.00836]
[1739858521538,0.2110048,95689.0,95687.0,0.00836]
[1739858523640,0.2140048,95689.0,95687.0,0.00836]
[1739858525644,0.2120048,95689.0,95687.0,0.00836]
[1739858525838,0.005,95689.0,95687.0,0.00836]
[1739858526046,0.005,95689.0,95688.0,0.11168]
[1739858526245,0.003,95689.0,95688.0,0.11168]
[1739858526434,0.005,95689.0,95688.0,0.11168]
[1739858526734,0.002,95689.0,95688.0,0.11168]
[1739858526939,0.006,95689.0,95688.0,0.11168]
[1739858527736,0.005,95689.0,95688.0,0.11168]
[1739858529841,0.005,95689.0,95686.0,0.86157679]
[1739858530036,0.2090074,95687.0,95685.0,0.0418]
[1739858530539,0.3608,95688.0,95665.0,0.2090547]
[1739858530843,0.3608,95688.0,95664.0,0.0323]
[1739858530844,0.3608,95674.0,95664.0,0.0323]
[1739858531034,0.3608,95674.0,95667.0,0.00015679]
[1739858531435,0.37715587,95674.0,95667.0,0.00015679]
[1739858531933,0.37715587,95674.0,95668.0,0.03367]
[1739858533239,0.0639,95673.0,95668.0,0.03367]
[1739858533845,0.0639,95673.0,95668.0,0.2427179]
[1739858534029,0.0639,95673.0,95668.0,0.03367]
[1739858534230,0.0639,95673.0,95668.0,0.03467]
[1739858534733,0.0639,95673.0,95669.0,0.2090451]
[1739858534734,0.18620809,95672.0,95669.0,0.2090451]
[1739858536137,0.18620809,95672.0,95668.0,0.03367]
[1739858536331,0.2090456,95670.0,95668.0,0.03367]
[1739858536735,0.18720809,95672.0,95667.0,0.00015679]
[1739858536736,0.2090481,95669.0,95667.0,0.00015679]
[1739858537839,0.25988079,95669.0,95667.0,0.00015679]
[1739858541350,0.05083269,95668.0,95667.0,0.00015679]
[1739858545543,0.12737648,95668.0,95667.0,0.00015679]
[1739858551244,0.12737648,95668.0,95667.0,0.09305679]
[1739858552057,0.05083269,95668.0,95667.0,0.09305679]
[1739858552753,0.05083269,95668.0,95667.0,0.06105679]
[1739858552951,0.05083269,95668.0,95667.0,0.03015679]
[1739858554053,0.62068169,95668.0,95667.0,0.00015679]
[1739858555549,0.569849,95668.0,95667.0,0.00015679]
[1739858556241,0.569849,95668.0,95635.0,0.01514578]
[1739858556242,0.20907,95659.0,95646.0,0.2090961]
[1739858556443,0.3608,95653.0,95646.0,0.2090961]
[1739858557547,0.3608,95653.0,95647.0,0.00057]
[1739858558561,0.18668544,95651.0,95647.0,0.00057]
[1739858559458,0.18668544,95651.0,95647.0,0.01357]
[1739858560251,0.20185974,95651.0,95647.0,0.00657]
[1739858560446,0.20185974,95651.0,95647.0,0.01357]
[1739858561055,0.2090884,95650.0,95647.0,0.01357]
[1739858561759,0.00514966,95648.0,95647.0,0.01357]
[1739858561967,0.2020946,95647.0,95640.0,0.00015679]
[1739858562261,0.3558,95641.0,95640.0,0.00015679]
[1739858562744,0.3488,95641.0,95640.0,0.00015679]
[1739858563558,0.3488,95641.0,95640.0,0.00715679]
[1739858564754,0.3488,95641.0,95640.0,0.01315679]
[1739858565155,0.18520303,95641.0,95640.0,0.00715679]
[1739858565356,0.18620303,95641.0,95640.0,0.01315679]
[1739858566267,0.18620303,95641.0,95624.0,0.0325]
[1739858566268,0.2091374,95628.0,95624.0,0.0325]
[1739858566560,0.2091408,95626.0,95618.0,0.0305]
[1739858566757,0.2091408,95626.0,95619.0,0.0325]
[1739858566956,0.2411408,95626.0,95619.0,0.0325]
[1739858567255,0.2091494,95623.0,95619.0,0.0325]
[1739858568252,0.22380713,95623.0,95619.0,0.0325]
[1739858568564,0.22480713,95623.0,95619.0,0.0325]
[1739858570067,0.01565773,95623.0,95619.0,0.0325]
[1739858570266,0.3608,95621.0,95590.0,0.3608]
[1739858570466,0.2091824,95607.0,95587.0,0.11584]
[1739858570766,0.0302,95606.0,95596.0,0.2092046]
[1739858571064,0.0302,95606.0,95604.0,0.3608]
[1739858571263,0.10297698,95614.0,95604.0,0.3608]
[1739858571467,0.00015688,95613.0,95596.0,0.0309]
[1739858571668,0.3608,95610.0,95596.0,0.0309]
[1739858571860,0.3608,95610.0,95601.0,0.1176]
[1739858573360,0.3608,95610.0,95593.0,0.0635]
[1739858573567,0.3608,95610.0,95601.0,0.11784]
[1739858574668,0.3608,95610.0,95593.0,0.0635]
[1739858574872,0.3608,95610.0,95601.0,0.11776]
[1739858575371,0.2091732,95612.0,95604.0,0.3608]
[1739858575572,0.2091732,95612.0,95593.0,0.2727126]
[1739858575960,0.15488129,95607.0,95593.0,0.0635]
[1739858576160,0.0649,95606.0,95593.0,0.0635]
[1739858579371,0.274085,95606.0,95593.0,0.0635]
[1739858582863,0.15488129,95601.0,95600.0,0.03919726]
[1739858583375,0.15488129,95601.0,95600.0,0.60919516]
[1739858583564,0.15488129,95601.0,95600.0,0.61119516]
[1739858584264,0.15488129,95601.0,95600.0,0.04119726]
[1739858584463,0.15488129,95601.0,95600.0,0.40199726]
[1739858584775,0.05088026,95605.0,95600.0,0.04119726]
[1739858584979,0.05088026,95605.0,95604.0,0.29604634]
[1739858586561,0.36151689,95613.0,95604.0,0.29604634]
[1739858586562,0.00071689,95613.0,95604.0,0.29604634]
[1739858586766,0.00015688,95613.0,95605.0,0.0327]
[1739858587166,0.00015688,95613.0,95606.0,0.0326]
[1739858591176,0.00015688,95613.0,95604.0,0.29604634]
[1739858591378,0.5699807,95608.0,95601.0,0.0308]
[1739858591576,0.0327,95607.0,95601.0,0.0308]
[1739858591967,0.0327,95607.0,95595.0,0.2092083]
[1739858593374,0.3935,95607.0,95595.0,0.2092083]
[1739858593575,0.3935,95607.0,95593.0,0.3916]
[1739858593776,0.18585755,95602.0,95593.0,0.0308]
[1739858593969,0.0646,95601.0,95593.0,0.3916]
[1739858595382,0.0666,95601.0,95593.0,0.3916]
[1739858595568,0.0686,95601.0,95593.0,0.3916]
[1739858595883,0.0696,95601.0,95593.0,0.3916]
[1739858596468,0.0696,95601.0,95594.0,0.0309]
[1739858597074,0.0676,95601.0,95594.0,0.0309]
[1739858597271,0.12047833,95601.0,95594.0,0.0309]
[1739858597983,0.12147833,95601.0,95594.0,0.0309]
[1739858598187,0.12147833,95601.0,95593.0,0.3916]
[1739858598680,0.12147833,95601.0,95593.0,0.0308]
[1739858598980,0.12347833,95601.0,95593.0,0.0308]
[1739858600771,0.33905414,95601.0,95593.0,0.0308]
[1739858600975,0.2092238,95589.0,95572.0,0.5700579]
[1739858601177,0.3608,95586.0,95579.0,0.0308]
[1739858601478,0.3608,95586.0,95582.0,0.1272]
[1739858601679,0.2092347,95584.0,95583.0,0.12704]
[1739858601872,0.3608,95586.0,95579.0,0.0308]
[1739858602381,0.3608,95586.0,95562.0,0.01473566]
[1739858602382,0.67552365,95586.0,95560.0,0.3608]
[1739858602580,0.3608,95575.0,95561.0,0.2092803]
[1739858602781,0.0636,95574.0,95569.0,0.3608]
[1739858602985,0.37552365,95586.0,95570.0,0.10297698]
[1739858603275,0.0636,95585.0,95570.0,0.10297698]
[1739858603477,0.01528366,95586.0,95584.0,0.2092319]
[1739858603781,8e-08,95593.0,95592.0,0.2092144]
[1739858603981,0.3608,95636.0,95592.0,0.3608]
[1739858604172,0.2732258,95627.0,95626.0,0.20914]
[1739858604368,0.0308,95635.0,95629.0,0.2091334]
[1739858604572,0.01510518,95633.0,95629.0,0.2091334]
[1739858604780,0.0621,95657.0,95629.0,0.2091334]
[1739858604981,0.0621,95657.0,95626.0,0.3608]
[1739858605172,0.00156892,95650.0,95649.0,0.2090897]
[1739858605573,0.36236892,95650.0,95635.0,0.2091193]
[1739858605774,0.3608,95642.0,95640.0,0.00015688]
[1739858606074,0.0313,95641.0,95639.0,0.20738644]
[1739858606279,0.36292893,95650.0,95630.0,0.10297698]
[1739858606280,0.36236892,95650.0,95636.0,0.3608]
[1739858606475,0.00156892,95650.0,95649.0,0.2090897]
[1739858607478,0.00756892,95650.0,95649.0,0.2090897]
[1739858607878,0.00456892,95650.0,95649.0,0.2090897]
[1739858608076,0.01156892,95650.0,95649.0,0.2090897]
[1739858608275,0.01556892,95650.0,95649.0,0.2090897]
[1739858618893,0.37636892,95650.0,95643.0,0.2091028]
[1739858619281,0.3608,95647.0,95643.0,0.2091028]
[1739858619487,0.0325,95646.0,95643.0,0.2091028]
[1739858621686,0.0385,95646.0,95643.0,0.2091028]
[1739858621886,0.0385,95646.0,95630.0,0.91256]
[1739858622186,0.0385,95646.0,95609.0,0.3608]
[1739858622187,0.3608,95631.0,95609.0,0.3608]
[1739858622388,0.0625,95630.0,95611.0,0.0616]
[1739858622789,0.06265688,95630.0,95626.0,0.2091386]
[1739858623689,0.06265688,95630.0,95615.0,0.2091617]
[1739858623896,0.16663386,95630.0,95617.0,0.2091582]
[1739858624097,0.16663386,95630.0,95611.0,0.0616]
[1739858624402,0.10297698,95621.0,95614.0,0.2091658]
[1739858624596,0.3608,95618.0,95614.0,0.2091658]
[1739858624795,0.3608,95618.0,95611.0,0.0616]
[1739858624995,0.3608,95618.0,95612.0,0.13196]
[1739858625199,0.3608,95618.0,95613.0,0.13192]
[1739858625388,0.0613,95617.0,95613.0,0.13192]
[1739858625589,0.0613,95617.0,95611.0,0.001]
[1739858626199,0.0613,95617.0,95591.0,0.0639]
[1739858626502,0.3598,95608.0,95592.0,0.209213]
[1739858626698,0.0327,95607.0,95592.0,0.209213]
[1739858627405,0.0327,95607.0,95590.0,0.3608]
[1739858627606,0.10297698,95602.0,95590.0,0.3608]
[1739858627902,0.0313,95601.0,95590.0,0.3608]
[1739858629097,0.0343,95601.0,95590.0,0.3608]
[1739858629507,0.15470643,95595.0,95590.0,0.3608]
[1739858631104,0.15670643,95595.0,95590.0,0.3608]
[1739858631706,0.15770643,95595.0,95590.0,0.3608]
[1739858633194,0.02342686,95601.0,95590.0,0.3608]
[1739858634609,0.02542686,95601.0,95590.0,0.3608]
[1739858635006,0.02642686,95601.0,95590.0,0.3608]
[1739858636207,0.01842686,95601.0,95590.0,0.3608]
[1739858636712,0.01842686,95601.0,95573.0,0.0313]
[1739858636713,0.36593313,95591.0,95578.0,0.00068]
[1739858636915,0.3608,95583.0,95575.0,0.0309]
[1739858637816,0.00015688,95589.0,95585.0,0.2092281]
[1739858638019,0.00015688,95589.0,95588.0,0.2092225]
[1739858638519,0.18568704,95599.0,95598.0,0.2092006]
[1739858638709,0.3608,95625.0,95613.0,0.2091666]
[1739858639011,0.032,95621.0,95613.0,0.2091666]
[1739858639219,0.3608,95625.0,95613.0,0.2091666]
[1739858639419,0.37493244,95625.0,95613.0,0.2091666]
[1739858639619,0.00015688,95624.0,95605.0,0.10297698]
[1739858639810,0.00015688,95624.0,95606.0,0.209183]
[1739858640010,0.00015688,95624.0,95606.0,0.3608]
[1739858640210,0.10297698,95620.0,95604.0,0.00015688]
[1739858640607,0.10297698,95614.0,95604.0,0.00015688]
[1739858640811,0.0317,95613.0,95604.0,0.00015688]
[1739858641612,0.01129957,95615.0,95611.0,0.2091716]
[1739858641815,0.001,95614.0,95611.0,0.2091716]
[1739858642009,0.001,95614.0,95612.0,0.0639]
[1739858642521,0.001,95613.0,95612.0,0.0639]
[1739858643217,0.2164,95636.0,95621.0,0.2091503]
[1739858643415,0.3608,95637.0,95621.0,0.2091503]
[1739858643416,0.00533413,95646.0,95621.0,0.5699503]
[1739858643621,0.00533413,95646.0,95629.0,0.2091306]
[1739858643810,0.3608,95643.0,95630.0,0.0632]
[1739858644010,0.10297698,95640.0,95631.0,0.13116]
[1739858644209,0.10297698,95640.0,95621.0,0.3608]
[1739858644523,0.007,95622.0,95618.0,0.209156]
[1739858644921,0.007,95622.0,95621.0,0.00015688]
[1739858645117,0.0307,95633.0,95621.0,0.00015688]
[1739858645317,0.3608,95636.0,95626.0,0.2091389]
[1739858645619,0.00715688,95640.0,95630.0,0.20913]
[1739858646016,0.11013386,95640.0,95630.0,0.20913]
[1739858646720,0.46393386,95640.0,95630.0,0.20913]
[1739858646919,0.46393386,95640.0,95626.0,0.3608]
[1739858647313,0.46493386,95640.0,95626.0,0.3608]
[1739858647714,0.46393386,95640.0,95621.0,0.00015688]
[1739858647914,0.10297698,95631.0,95621.0,0.00015688]
[1739858648111,0.0307,95630.0,95621.0,0.00015688]
[1739858649022,0.3608,95629.0,95621.0,0.00015688]
[1739858649722,0.3608,95629.0,95625.0,0.2091404]
[1739858650424,0.3608,95629.0,95621.0,0.00015688]
[1739858650918,0.0325,95628.0,95621.0,0.00015688]
[1739858651623,0.209139,95627.0,95621.0,0.00015688]
[1739858653028,0.00534728,95622.0,95621.0,0.00015688]
[1739858654220,0.21449528,95622.0,95621.0,0.00015688]
[1739858655135,0.00534728,95622.0,95605.0,0.00156902]
[1739858655320,0.3608,95612.0,95605.0,0.00156902]
[1739858655630,0.0641,95611.0,95605.0,0.00156902]
[1739858655925,0.2091797,95608.0,95605.0,0.00156902]
[1739858656427,0.2091797,95608.0,95588.0,0.91172]
[1739858656428,0.0641,95611.0,95597.0,0.00015688]
[1739858656633,0.2091978,95600.0,95597.0,0.00015688]
[1739858656935,0.3608,95601.0,95575.0,0.3608]
[1739858656936,0.5700006,95598.0,95575.0,0.3608]
[1739858657229,0.3608,95589.0,95575.0,0.3608]
[1739858657426,0.0307,95588.0,95575.0,0.3608]
[1739858657628,0.061,95588.0,95575.0,0.3608]
[1739858658021,0.2092251,95587.0,95575.0,0.3608]
[1739858658324,0.061,95588.0,95576.0,0.00156949]
[1739858658526,0.2092427,95579.0,95576.0,0.00156949]
[1739858659730,0.2092427,95579.0,95576.0,0.00556949]
[1739858660932,0.3608,95578.0,95551.0,0.3608]
[1739858661233,0.2092788,95563.0,95551.0,0.3608]
[1739858661433,0.0637,95562.0,95551.0,0.3608]
[1739858662131,0.0637,95562.0,95542.0,0.0317]
[1739858662132,0.2092873,95559.0,95542.0,0.0317]
[1739858662332,0.10297698,95552.0,95542.0,0.0317]
[1739858662530,0.09597698,95552.0,95542.0,0.0317]
[1739858662733,0.10994686,95552.0,95540.0,0.3608]
[1739858663233,0.2093161,95546.0,95540.0,0.3608]
[1739858663429,0.0318,95545.0,95540.0,0.3608]
[1739858663628,0.0318,95545.0,95541.0,0.1296]
[1739858663827,0.0303,95544.0,95541.0,0.1296]
[1739858664033,0.0303,95544.0,95540.0,0.3678]
[1739858664229,0.0303,95544.0,95540.0,0.007]
[1739858665135,0.5701256,95542.0,95540.0,0.007]
[1739858665330,0.033,95541.0,95522.0,0.2093673]
[1739858665539,0.10297698,95540.0,95528.0,0.2093523]
[1739858666424,0.10297698,95540.0,95523.0,0.3608]
[1739858666645,0.001,95541.0,95531.0,0.3608]
[1739858666936,0.001,95541.0,95532.0,0.12888]
[1739858667135,0.00115697,95542.0,95540.0,0.2093259]
[1739858667728,0.001,95541.0,95540.0,0.2093259]
[1739858669331,0.00015697,95542.0,95540.0,0.2093259]
[1739858669535,0.00015697,95542.0,95541.0,0.3608]
[1739858670333,0.00015697,95542.0,95540.0,0.2093259]
[1739858670334,0.66095697,95542.0,95517.0,0.00068]
[1739858670638,0.66095697,95542.0,95500.0,2.10068]
[1739858670639,0.00524244,95506.0,95500.0,2.10068]
[1739858670847,0.3608,95505.0,95500.0,2.1]
[1739858672240,0.5702064,95505.0,95500.0,2.1]
[1739858672632,0.3608,95505.0,95500.0,2.1]
[1739858673544,0.3608,95505.0,95503.0,0.2094074]
[1739858673726,0.00524244,95506.0,95505.0,0.2094046]
[1739858673930,0.01326312,95517.0,95511.0,0.2093914]
[1739858674134,0.03762829,95532.0,95511.0,0.5701914]
[1739858674442,0.3608,95536.0,95524.0,0.2093629]
[1739858675339,0.3608,95547.0,95538.0,0.2093304]
[1739858676439,0.3608,95547.0,95540.0,0.209327]
[1739858677037,0.3648,95547.0,95540.0,0.209327]
[1739858678144,0.3668,95547.0,95540.0,0.209327]
[1739858678444,0.3628,95547.0,95533.0,0.0332]
[1739858678746,0.3668,95547.0,95534.0,0.12952]
[1739858678941,0.3648,95547.0,95534.0,0.12952]
[1739858679148,0.3618,95547.0,95534.0,0.12952]
[1739858679749,0.3608,95537.0,95535.0,0.12936]